fUSD/lending_fUSD_20260111
["ID","MTS","AMOUNT","RATE_DAILY","PERIOD"]
[401290887,1768108272066,-1342.19,0.00036049,30]
[401290888,1768108272076,-4832.82,0.00036053,2]
[401290889,1768108272086,-500.0,0.00036054,60]
[401290890,1768108272096,-152.0,0.00036058,30]
[401290891,1768108272105,-500.0,0.00036074,30]
[401290892,1768108272115,-500.0,0.00036109,60]
[401290893,1768108272124,-1029.12157783,0.00036111,31]
[401290894,1768108272134,-5000.0,0.00036111,2]
[401290895,1768108272144,-5000.0,0.00036113,2]
[401290896,1768108272153,-5000.0,0.00036115,2]
[401290897,1768108272163,-5000.0,0.00036116,2]
[401290898,1768108272173,-500.0,0.00036164,60]
[401290899,1768108272184,-600.0,0.00036164,5]
[401290900,1768108272194,-350.0,0.00036164,5]
[401290901,1768108272204,-1000.0,0.00036164,14]
[401290902,1768108272214,-2000.0,0.00036181,120]
[401290903,1768108272228,-990.09,0.00036186,2]
[401290904,1768108272237,-2561.82,0.00036189,2]
[401290905,1768108272248,-508.0,0.00036192,14]
[401290906,1768108272258,-401.33231433,0.00036196,2]
[401290907,1768108272269,-25000.0,0.00036204,2]
[401290908,1768108272280,-500.0,0.00036219,60]
[401290909,1768108272289,-3749.64,0.00036231,2]
[401290910,1768108272299,-500.0,0.00036234,30]
[401290911,1768108272308,-500.0,0.00036234,30]
[401290912,1768108272316,-5000.0,0.00036235,2]
[401290913,1768108272326,-500.0,0.00036274,60]
[401290914,1768108272335,-976.03170467,0.00036294,30]
[401290915,1768108272345,-171.45,0.00036296,2]
[401290916,1768108272355,-170.85,0.00036296,2]
[401290917,1768108272365,-466.97,0.00036296,2]
[401290918,1768108272375,-466.97,0.00036296,2]
[401290919,1768108272384,-464.81,0.00036296,2]
[401290920,1768108272394,-2000.0,0.000363,2]
[401290921,1768108272403,-663.55,0.00036314,2]
[401290922,1768108272413,-5000.0,0.00036321,2]
[401290923,1768108272423,-500.0,0.00036328,60]
[401290924,1768108272433,-158.1506329,0.00036344,120]
[401290925,1768108272443,-25000.0,0.00036345,2]
[401290926,1768108272453,-5000.0,0.00036359,2]
[401290927,1768108272462,-5000.0,0.00036364,2]
[401290928,1768108272472,-5000.0,0.0003638,2]
[401290929,1768108272482,-428.12807599,0.00036383,60]
[401290930,1768108272492,-5000.0,0.00036388,2]
[401290931,1768108272502,-333.0,0.0003639,30]
[401290932,1768108272512,-4508.35,0.00036399,2]
[401290933,1768108272522,-736.29637838,0.00036425,2]
[401290934,1768108272531,-600.0,0.00036438,5]
[401290935,1768108272542,-1000.0,0.00036438,14]
[401290936,1768108272551,-5000.0,0.00036457,2]
[401290937,1768108272561,-5000.0,0.00036467,2]
[401290938,1768108272572,-1300.0,0.0003647,30]
[401290939,1768108272582,-5000.0,0.00036489,2]
[401290940,1768108272591,-5000.0,0.00036495,2]
[401290941,1768108272601,-25000.0,0.00036513,2]
[401290942,1768108272615,-2500.0,0.00036525,2]
[401290943,1768108272625,-5000.0,0.00036535,2]
[401290944,1768108272635,-168.0,0.00036549,30]
[401290945,1768108272644,-5000.0,0.00036554,2]
[401290946,1768108272654,-678.48,0.00036554,2]
[401290947,1768108272663,-3000.0,0.00036562,14]
[401290948,1768108272673,-25000.0,0.00036572,2]
[401290949,1768108272683,-611.53,0.00036588,2]
[401290950,1768108272692,-5000.0,0.00036589,2]
[401290951,1768108272701,-1596.53,0.000366,14]
[401290952,1768108272711,-5000.0,0.00036614,2]
[401290953,1768108272721,-5000.0,0.00036623,2]
[401290954,1768108272733,-5000.0,0.00036635,2]
[401290955,1768108272742,-152.0,0.00036638,31]
[401290956,1768108272751,-25000.0,0.00036642,2]
[401290957,1768108272762,-5000.0,0.00036653,2]
[401290958,1768108272771,-25000.0,0.00036661,2]
[401290959,1768108272780,-288.35447635,0.00036678,30]
[401290960,1768108272790,-323.8613734,0.00036678,30]
[401290961,1768108272799,-25000.0,0.00036679,2]
[401290962,1768108272810,-5000.0,0.00036691,2]
[401290963,1768108272819,-1999.0,0.00036712,120]
[401290964,1768108272828,-900.0,0.00036712,5]
[401290965,1768108272838,-1000.0,0.00036712,14]
[401290966,1768108272848,-1676.82,0.00036715,2]
[401290967,1768108272857,-1513.63,0.00036718,2]
[401290968,1768108272867,-508.0,0.00036753,14]
[401290969,1768108272877,-5000.0,0.00036764,2]
[401290970,1768108272886,-2561.82,0.00036767,2]
[401290971,1768108272896,-1605.36704295,0.000368,2]
[401290972,1768108272906,-1948.51984692,0.000368,2]
[401290973,1768108272915,-5000.0,0.00036813,2]
[401290974,1768108272925,-161.67233531,0.00036822,2]
[401290975,1768108272936,-5000.0,0.00036834,2]
[401290976,1768108272945,-1000.0,0.00036836,14]
[401290977,1768108272955,-5000.0,0.00036844,2]
[401290978,1768108272964,-5000.0,0.00036856,2]
[401290979,1768108272973,-5000.0,0.00036879,2]
[401290980,1768108272985,-14529.31,0.00036882,2]
[401290981,1768108272995,-1880.2361121,0.00036888,60]
[401290982,1768108273005,-205.0,0.0003689,30]
[401290983,1768108273015,-14080.37109652,0.0003691,2]
[401290984,1768108273024,-5000.0,0.00036917,2]
[401290985,1768108273033,-4417.27420399,0.00036937,2]
[401290986,1768108273043,-5000.0,0.00036948,2]
[401290987,1768108273053,-400.0,0.00036986,5]
[401290988,1768108273063,-1000.0,0.00036986,14]
[401290989,1768108273073,-500.0,0.00036999,30]
[401290990,1768108273083,-359.75091427,0.00037,4]
[401290991,1768108273092,-3798.93338366,0.00037,2]
[401290992,1768108273101,-165.1204445,0.00037,2]
[401290993,1768108273111,-3746.04,0.00037,14]
[401290994,1768108273121,-5105.17,0.00037,14]
[401290995,1768108273131,-151.78987322,0.00037,120]
[401290996,1768108273140,-150.0,0.00037,120]
[401290997,1768108273149,-212.0,0.00037,120]
[401290998,1768108273159,-2165.1,0.00037,30]
[401290999,1768108273169,-1022.90426406,0.00037,7]
[401291000,1768108273179,-500.0,0.00037048,30]
[401291001,1768108273188,-500.0,0.0003711,14]
[401291002,1768108273198,-500.0,0.00037173,30]
[401291003,1768108273207,-1854.61,0.000372,14]
[401291004,1768108273217,-160.37166969,0.000372,120]
[401291005,1768108273226,-664.6551574,0.00037212,120]
[401291006,1768108273236,-333.0,0.00037213,30]
[401291007,1768108273245,-152.0,0.00037219,32]
[401291008,1768108273254,-2000.0,0.00037242,120]
[401291009,1768108273264,-900.0,0.0003726,5]
[401291010,1768108273274,-1200.0,0.0003726,5]
[401291011,1768108273283,-1000.0,0.0003726,14]
[401291012,1768108273293,-508.0,0.00037315,15]
[401291013,1768108273304,-1300.0,0.00037381,30]
[401291014,1768108273313,-1535.71,0.000374,14]
[401291015,1768108273323,-1000.0,0.000375,2]
[401291016,1768108273332,-736.29637837,0.0003752,2]
[401291017,1768108273341,-1000.0,0.00037534,14]
[401291018,1768108273351,-4317.86077874,0.0003759,2]
[401291019,1768108273361,-252.0,0.00037656,30]
[401291020,1768108273373,-2274.18950596,0.00037701,30]
[401291021,1768108273385,-500.0,0.00037734,30]
[401291022,1768108273395,-477.09866015,0.00037751,2]
[401291023,1768108273405,-762.81331467,0.00037798,30]
[401291024,1768108273415,-152.0,0.00037799,33]
[401291025,1768108273426,-1999.0,0.00037808,120]
[401291026,1768108273436,-1500.0,0.00037808,5]
[401291027,1768108273446,-450.0,0.00037808,5]
[401291028,1768108273455,-1000.0,0.00037808,14]
[401291029,1768108273466,-232.40544614,0.00037819,120]
[401291030,1768108273476,-508.0,0.00037877,16]
[401291031,1768108273485,-201.4330951,0.0003788,2]
[401291032,1768108273495,-252.0,0.00037973,30]
[401291033,1768108273505,-333.0,0.00037973,30]
[401291034,1768108273514,-353.54729008,0.00038,2]
[401291035,1768108273524,-335.52552734,0.00038,20]
[401291036,1768108273534,-700.0,0.00038,10]
[401291037,1768108273543,-480.8356864,0.00038,2]
[401291038,1768108273553,-291.36686698,0.00038,14]
[401291039,1768108273562,-933.74201997,0.00038,10]
[401291040,1768108273571,-150.0,0.00038,120]
[401291041,1768108273581,-500.0,0.00038,120]
[401291042,1768108273590,-5625.9,0.00038,2]
[401291043,1768108273600,-1019.0,0.00038,7]
[401291044,1768108273610,-616.99811581,0.00038016,30]
[401291045,1768108273619,-970.647,0.00038056,2]
[401291046,1768108273863,-1405.0,0.00038056,2]
[401291047,1768108273873,-614.0,0.00038056,2]
[401291048,1768108273882,-1267.0,0.00038056,2]
[401291049,1768108273891,-506.0,0.00038056,2]
[401291050,1768108273901,-914.0,0.00038056,2]
[401291051,1768108273911,-1201.0,0.00038056,2]
[401291052,1768108273920,-2437.0,0.00038056,2]
[401291053,1768108273930,-1200.0,0.00038082,5]
[401291054,1768108273939,-1000.0,0.00038082,14]
[401291055,1768108273949,-1355.9,0.00038117,5]
[401291056,1768108273959,-510.39280104,0.00038123,30]
[401291057,1768108273968,-3000.0,0.00038206,14]
[401291058,1768108273979,-507.27190322,0.000383,30]
[401291059,1768108273988,-2000.0,0.00038302,120]
[401291060,1768108273997,-418.0,0.00038356,120]
[401291061,1768108274007,-1800.0,0.00038356,5]
[401291062,1768108274016,-300.0,0.00038356,120]
[401291063,1768108274025,-300.0,0.00038356,120]
[401291064,1768108274035,-300.0,0.00038356,120]
[401291065,1768108274044,-300.0,0.00038356,120]
[401291066,1768108274054,-300.0,0.00038356,120]
[401291067,1768108274065,-300.0,0.00038356,120]
[401291068,1768108274075,-1000.0,0.00038356,5]
[401291069,1768108274085,-1000.0,0.00038356,14]
[401291070,1768108274095,-152.0,0.00038379,34]
[401291071,1768108274106,-508.0,0.00038438,16]
[401291072,1768108274116,-1000.0,0.0003848,14]
[401291073,1768108274125,-431.0,0.000385,14]
[401291074,1768108274135,-179.69142017,0.000385,30]
[401291075,1768108274145,-333.0,0.00038542,90]
[401291076,1768108274154,-736.29637837,0.00038615,2]
[401291077,1768108274164,-500.0,0.0003863,5]
[401291078,1768108274173,-1000.0,0.0003863,14]
[401291079,1768108274182,-500.0,0.000387,120]
[401291080,1768108274192,-500.0,0.000387,120]
[401291081,1768108274201,-500.0,0.00038754,14]
[401291082,1768108274211,-150.0,0.00038761,2]
[401291083,1768108274220,-150.0,0.00038761,2]
[401291084,1768108274229,-150.7,0.00038761,2]
[401291085,1768108274239,-993.97018497,0.00038767,5]
[401291086,1768108274248,-327.92,0.0003879,2]
[401291087,1768108274258,-168.65937654,0.00038795,7]
[401291088,1768108274267,-10000.0,0.000388,14]
[401291089,1768108274276,-10631.4681739,0.000388,2]
[401291090,1768108274285,-15079.98016307,0.00038874,2]
[401291091,1768108274294,-3157.18313343,0.0003889,30]
[401291092,1768108274304,-340.21828513,0.000389,120]
[401291093,1768108274313,-1999.0,0.00038904,120]
[401291094,1768108274323,-1500.0,0.00038904,5]
[401291095,1768108274332,-2100.0,0.00038904,5]
[401291096,1768108274342,-1999.0,0.00038904,14]
[401291097,1768108274353,-205.0,0.0003891,30]
[401291098,1768108274363,-152.0,0.0003896,35]
[401291099,1768108274372,-300.0,0.00038968,2]
[401291100,1768108274382,-300.0,0.00038968,2]
[401291101,1768108274391,-455.38717483,0.00038968,2]
[401291102,1768108274400,-300.0,0.00038968,2]
[401291103,1768108274409,-300.0,0.00038968,2]
[401291104,1768108274419,-1074.03333892,0.00038968,2]
[401291105,1768108274430,-300.0,0.00038968,2]
[401291106,1768108274440,-300.0,0.00038968,2]
[401291107,1768108274449,-368.64512459,0.00038968,2]
[401291108,1768108274460,-300.0,0.00038968,2]
[401291109,1768108274471,-300.0,0.00038968,2]
[401291110,1768108274483,-300.0,0.00038968,2]
[401291111,1768108274492,-300.0,0.00038968,2]
[401291112,1768108274502,-300.0,0.00038968,2]
[401291113,1768108274513,-300.0,0.00038968,2]
[401291114,1768108274523,-300.0,0.00038968,2]
[401291115,1768108274534,-303.82111298,0.00038968,2]
[401291116,1768108274546,-300.0,0.00038968,2]
[401291117,1768108274556,-578.70657388,0.00038968,2]
[401291118,1768108274566,-300.0,0.00038968,2]
[401291119,1768108274575,-300.0,0.00038968,2]
[401291120,1768108274584,-300.00000001,0.00038968,2]
[401291121,1768108274594,-300.0,0.00038968,2]
[401291122,1768108274603,-300.0,0.00038968,2]
[401291123,1768108274613,-304.99557938,0.00038968,2]
[401291124,1768108274623,-305.72936402,0.00038968,2]
[401291125,1768108274632,-300.0,0.00038968,2]
[401291126,1768108274641,-300.0,0.00038968,2]
[401291127,1768108274651,-455.38717485,0.00038968,2]
[401291128,1768108274660,-300.0,0.00038968,2]
[401291129,1768108274670,-300.0,0.00038968,2]
[401291130,1768108274679,-1074.03333892,0.00038968,2]
[401291131,1768108274690,-300.0,0.00038968,2]
[401291132,1768108274699,-368.64512459,0.00038968,2]
[401291133,1768108274708,-300.0,0.00038968,2]
[401291134,1768108274718,-300.0,0.00038968,2]
[401291135,1768108274728,-300.0,0.00038968,2]
[401291136,1768108274740,-303.82953583,0.00038968,2]
[401291137,1768108274750,-578.70657388,0.00038968,2]
[401291138,1768108274759,-304.99557938,0.00038968,2]
[401291139,1768108274771,-455.38717483,0.00038968,2]
[401291140,1768108274780,-1074.03333892,0.00038968,2]
[401291141,1768108274790,-368.64512459,0.00038968,2]
[401291142,1768108274799,-303.82953583,0.00038968,2]
[401291143,1768108274809,-578.70657388,0.00038968,2]
[401291144,1768108274820,-304.99557938,0.00038968,2]
[401291145,1768108274830,-455.38717485,0.00038968,2]
[401291146,1768108274839,-1074.03333892,0.00038968,2]
[401291147,1768108274849,-368.64512459,0.00038968,2]
[401291148,1768108274859,-300.0,0.00038968,2]
[401291149,1768108274868,-303.8126901,0.00038968,2]
[401291150,1768108274878,-578.70657388,0.00038968,2]
[401291151,1768108274887,-304.99557938,0.00038968,2]
[401291152,1768108274897,-455.38717483,0.00038968,2]
[401291153,1768108274906,-1074.03333892,0.00038968,2]
[401291154,1768108274916,-368.64512459,0.00038968,2]
[401291155,1768108274925,-300.0,0.00038968,2]
[401291156,1768108274935,-303.82953583,0.00038968,2]
[401291157,1768108274944,-578.70657388,0.00038968,2]
[401291158,1768108274954,-304.99557938,0.00038968,2]
[401291159,1768108274963,-455.38717485,0.00038968,2]
[401291160,1768108274973,-1074.03333892,0.00038968,2]
[401291161,1768108274983,-368.64512459,0.00038968,2]
[401291162,1768108274992,-300.0,0.00038968,2]
[401291163,1768108275002,-300.0,0.00038968,2]
[401291164,1768108275011,-301.99795203,0.00038968,2]
[401291165,1768108275020,-404.14639659,0.00038968,2]
[401291166,1768108275029,-767.69763352,0.00038968,2]
[401291167,1768108275039,-405.72561632,0.00038968,2]
[401291168,1768108275048,-604.10511736,0.00038968,2]
[401291169,1768108275057,-1074.05970271,0.00038968,2]
[401291170,1768108275067,-489.03536204,0.00038968,2]
[401291171,1768108275076,-300.0,0.00038968,2]
[401291172,1768108275087,-350.89536511,0.00038968,2]
[401291173,1768108275096,-300.0,0.00038968,2]
[401291174,1768108275106,-300.0,0.00038968,2]
[401291175,1768108275116,-300.0,0.00038968,2]
[401291176,1768108275125,-300.0,0.00038968,2]
[401291177,1768108275135,-300.0,0.00038968,2]
[401291178,1768108275145,-300.0,0.00038968,2]
[401291179,1768108275154,-300.0,0.00038968,2]
[401291180,1768108275165,-300.0,0.00038968,2]
[401291181,1768108275174,-366.44868497,0.00038968,2]
[401291182,1768108275184,-300.0,0.00038968,2]
[401291183,1768108275194,-300.0,0.00038968,2]
[401291184,1768108275203,-300.0,0.00038968,2]
[401291185,1768108275213,-300.0,0.00038968,2]
[401291186,1768108275222,-301.41581686,0.00038968,2]
[401291187,1768108275232,-301.45821415,0.00038968,2]
[401291188,1768108275241,-301.86311536,0.00038968,2]
[401291189,1768108275250,-301.463013,0.00038968,2]
[401291190,1768108275259,-305.92376666,0.00038968,2]
[401291191,1768108275268,-301.46791097,0.00038968,2]
[401291192,1768108275277,-582.84265545,0.00038968,2]
[401291193,1768108275287,-301.55582473,0.00038968,2]
[401291194,1768108275296,-301.47589434,0.00038968,2]
[401291195,1768108275305,-301.48781998,0.00038968,2]
[401291196,1768108275314,-301.49832375,0.00038968,2]
[401291197,1768108275323,-307.1063139,0.00038968,2]
[401291198,1768108275333,-302.34221015,0.00038968,2]
[401291199,1768108275342,-301.49575112,0.00038968,2]
[401291200,1768108275351,-458.64199738,0.00038968,2]
[401291201,1768108275360,-301.99559744,0.00038968,2]
[401291202,1768108275370,-301.45448234,0.00038968,2]
[401291203,1768108275380,-1081.60641544,0.00038968,2]
[401291204,1768108275389,-302.15562605,0.00038968,2]
[401291205,1768108275398,-301.49003287,0.00038968,2]
[401291206,1768108275408,-371.27988896,0.00038968,2]
[401291207,1768108275418,-302.06450869,0.00038968,2]
[401291208,1768108275427,-301.61399798,0.00038968,2]
[401291209,1768108275437,-300.0,0.00038968,2]
[401291210,1768108275447,-300.0,0.00038968,2]
[401291211,1768108275456,-300.0,0.00038968,2]
[401291212,1768108275465,-300.0,0.00038968,2]
[401291213,1768108275475,-300.0,0.00038968,2]
[401291214,1768108275485,-303.73891517,0.00038968,2]
[401291215,1768108275494,-300.0,0.00038968,2]
[401291216,1768108275504,-578.54355362,0.00038968,2]
[401291217,1768108275513,-300.0,0.00038968,2]
[401291218,1768108275523,-300.0,0.00038968,2]
[401291219,1768108275532,-300.0,0.00038968,2]
[401291220,1768108275542,-300.0,0.00038968,2]
[401291221,1768108275551,-300.0,0.00038968,2]
[401291222,1768108275561,-304.91306557,0.00038968,2]
[401291223,1768108275571,-300.0,0.00038968,2]
[401291224,1768108275581,-455.25889033,0.00038968,2]
[401291225,1768108275591,-300.0,0.00038968,2]
[401291226,1768108275601,-300.0,0.00038968,2]
[401291227,1768108275610,-1073.74093142,0.00038968,2]
[401291228,1768108275621,-300.0,0.00038968,2]
[401291229,1768108275632,-300.0,0.00038968,2]
[401291230,1768108275643,-368.5412772,0.00038968,2]
[401291231,1768108275653,-300.0,0.00038968,2]
[401291232,1768108275664,-300.0,0.00038968,2]
[401291233,1768108275673,-300.0,0.00038968,2]
[401291234,1768108275683,-300.0,0.00038968,2]
[401291235,1768108275694,-300.0,0.00038968,2]
[401291236,1768108275703,-373.16132044,0.00038968,2]
[401291237,1768108275713,-300.0,0.00038968,2]
[401291238,1768108275723,-300.0,0.00038968,2]
[401291239,1768108275737,-303.73891515,0.00038968,2]
[401291240,1768108275747,-300.0,0.00038968,2]
[401291241,1768108275757,-578.54355362,0.00038968,2]
[401291242,1768108275767,-300.0,0.00038968,2]
[401291243,1768108275777,-300.0,0.00038968,2]
[401291244,1768108275787,-300.0,0.00038968,2]
[401291245,1768108275797,-300.0,0.00038968,2]
[401291246,1768108275808,-300.0,0.00038968,2]
[401291247,1768108275817,-304.91306557,0.00038968,2]
[401291248,1768108275826,-300.0,0.00038968,2]
[401291249,1768108275836,-300.0,0.00038968,2]
[401291250,1768108275846,-455.25889033,0.00038968,2]
[401291251,1768108275855,-300.0,0.00038968,2]
[401291252,1768108275865,-588.92639138,0.00038968,2]
[401291253,1768108275875,-1073.74093136,0.00038968,2]
[401291254,1768108275885,-300.0,0.00038968,2]
[401291255,1768108275895,-551.44493874,0.00038968,2]
[401291256,1768108275904,-368.5412772,0.00038968,2]
[401291257,1768108275914,-300.0,0.00038968,2]
[401291258,1768108275924,-300.0,0.00038968,2]
[401291259,1768108275934,-300.0,0.00038968,2]
[401291260,1768108275944,-300.0,0.00038968,2]
[401291261,1768108275953,-300.0,0.00038968,2]
[401291262,1768108275964,-310.32887286,0.00038968,2]
[401291263,1768108275974,-300.0,0.00038968,2]
[401291264,1768108275983,-303.73891517,0.00038968,2]
[401291265,1768108275993,-337.50864731,0.00038968,2]
[401291266,1768108276002,-578.54355362,0.00038968,2]
[401291267,1768108276012,-364.8139787,0.00038968,2]
[401291268,1768108276021,-300.0,0.00038968,2]
[401291269,1768108276031,-409.39907502,0.00038968,2]
[401291270,1768108276040,-476.21584979,0.00038968,2]
[401291271,1768108276050,-534.99519693,0.00038968,2]
[401291272,1768108276059,-304.91306557,0.00038968,2]
[401291273,1768108276069,-300.0,0.00038968,2]
[401291274,1768108276078,-520.32246072,0.00038968,2]
[401291275,1768108276087,-300.0,0.00038968,2]
[401291276,1768108276097,-455.25889033,0.00038968,2]
[401291277,1768108276106,-1073.74093143,0.00038968,2]
[401291278,1768108276116,-300.0,0.00038968,2]
[401291279,1768108276125,-368.54127718,0.00038968,2]
[401291280,1768108276134,-300.0,0.00038968,2]
[401291281,1768108276144,-307.82267073,0.00038968,2]
[401291282,1768108276155,-300.0,0.00038968,2]
[401291283,1768108276167,-300.0,0.00038968,2]
[401291284,1768108276178,-300.0,0.00038968,2]
[401291285,1768108276187,-303.73891515,0.00038968,2]
[401291286,1768108276196,-578.54355362,0.00038968,2]
[401291287,1768108276208,-557.0163834,0.00038968,2]
[401291288,1768108276218,-304.91306557,0.00038968,2]
[401291289,1768108276228,-300.0,0.00038968,2]
[401291290,1768108276237,-455.25889033,0.00038968,2]
[401291291,1768108276247,-300.0,0.00038968,2]
[401291292,1768108276256,-1073.74093136,0.00038968,2]
[401291293,1768108276266,-300.0,0.00038968,2]
[401291294,1768108276275,-368.5412772,0.00038968,2]
[401291295,1768108276285,-300.0,0.00038968,2]
[401291296,1768108276295,-300.0,0.00038968,2]
[401291297,1768108276304,-300.0,0.00038968,2]
[401291298,1768108276315,-300.0,0.00038968,2]
[401291299,1768108276324,-300.0,0.00038968,2]
[401291300,1768108276336,-303.73891517,0.00038968,2]
[401291301,1768108276349,-578.54355362,0.00038968,2]
[401291302,1768108276359,-304.91306557,0.00038968,2]
[401291303,1768108276369,-300.0,0.00038968,2]
[401291304,1768108276379,-455.25889033,0.00038968,2]
[401291305,1768108276388,-300.0,0.00038968,2]
[401291306,1768108276398,-1073.74093143,0.00038968,2]
[401291307,1768108276407,-300.0,0.00038968,2]
[401291308,1768108276417,-368.54127718,0.00038968,2]
[401291309,1768108276426,-300.0,0.00038968,2]
[401291310,1768108276436,-300.0,0.00038968,2]
[401291311,1768108276445,-300.0,0.00038968,2]
[401291312,1768108276618,-300.0,0.00038968,2]
[401291313,1768108276643,-300.0,0.00038968,2]
[401291314,1768108276653,-303.73891515,0.00038968,2]
[401291315,1768108276663,-578.67252668,0.00038968,2]
[401291316,1768108276676,-304.91306557,0.00038968,2]
[401291317,1768108276687,-300.0,0.00038968,2]
[401291318,1768108276696,-455.36038354,0.00038968,2]
[401291319,1768108276706,-300.0,0.00038968,2]
[401291320,1768108276715,-1073.97689594,0.00038968,2]
[401291321,1768108276728,-300.0,0.00038968,2]
[401291322,1768108276747,-300.0,0.00038968,2]
[401291323,1768108276756,-368.62343555,0.00038968,2]
[401291324,1768108276766,-300.0,0.00038968,2]
[401291325,1768108276779,-300.0,0.00038968,2]
[401291326,1768108276796,-300.0,0.00038968,2]
[401291327,1768108276805,-300.0,0.00038968,2]
[401291328,1768108276815,-300.0,0.00038968,2]
[401291329,1768108276825,-303.73891517,0.00038968,2]
[401291330,1768108276835,-578.67252668,0.00038968,2]
[401291331,1768108276844,-1553.67582506,0.00038968,2]
[401291332,1768108276854,-304.91306557,0.00038968,2]
[401291333,1768108276863,-300.0,0.00038968,2]
[401291334,1768108276873,-455.36038354,0.00038968,2]
[401291335,1768108276883,-300.0,0.00038968,2]
[401291336,1768108276892,-1073.97689594,0.00038968,2]
[401291337,1768108276902,-300.0,0.00038968,2]
[401291338,1768108276913,-300.0,0.00038968,2]
[401291339,1768108276922,-368.62343555,0.00038968,2]
[401291340,1768108276932,-300.0,0.00038968,2]
[401291341,1768108276942,-400.0,0.00038968,2]
[401291342,1768108276952,-391.43006793,0.00038968,2]
[401291343,1768108276962,-300.0,0.00038968,2]
[401291344,1768108276973,-300.0,0.00038968,2]
[401291345,1768108276984,-303.73891515,0.00038968,2]
[401291346,1768108276994,-578.67252668,0.00038968,2]
[401291347,1768108277004,-1553.67582506,0.00038968,2]
[401291348,1768108277014,-304.91306557,0.00038968,2]
[401291349,1768108277024,-300.0,0.00038968,2]
[401291350,1768108277035,-455.36038354,0.00038968,2]
[401291351,1768108277044,-300.0,0.00038968,2]
[401291352,1768108277054,-1073.97689592,0.00038968,2]
[401291353,1768108277064,-300.0,0.00038968,2]
[401291354,1768108277076,-368.62343555,0.00038968,2]
[401291355,1768108277087,-300.0,0.00038968,2]
[401291356,1768108277098,-300.0,0.00038968,2]
[401291357,1768108277108,-300.0,0.00038968,2]
[401291358,1768108277118,-303.73891517,0.00038968,2]
[401291359,1768108277129,-578.67252668,0.00038968,2]
[401291360,1768108277139,-1553.67582506,0.00038968,2]
[401291361,1768108277148,-304.91306557,0.00038968,2]
[401291362,1768108277158,-300.0,0.00038968,2]
[401291363,1768108277167,-455.36038354,0.00038968,2]
[401291364,1768108277176,-300.0,0.00038968,2]
[401291365,1768108277185,-1073.97689594,0.00038968,2]
[401291366,1768108277195,-300.0,0.00038968,2]
[401291367,1768108277204,-368.62343555,0.00038968,2]
[401291368,1768108277213,-300.0,0.00038968,2]
[401291369,1768108277222,-300.0,0.00038968,2]
[401291370,1768108277231,-300.0,0.00038968,2]
[401291371,1768108277240,-303.73891515,0.00038968,2]
[401291372,1768108277249,-578.67252668,0.00038968,2]
[401291373,1768108277259,-1553.67582506,0.00038968,2]
[401291374,1768108277268,-304.91306557,0.00038968,2]
[401291375,1768108277277,-300.0,0.00038968,2]
[401291376,1768108277286,-455.36038354,0.00038968,2]
[401291377,1768108277295,-300.0,0.00038968,2]
[401291378,1768108277305,-1073.97689592,0.00038968,2]
[401291379,1768108277314,-300.0,0.00038968,2]
[401291380,1768108277324,-368.62343555,0.00038968,2]
[401291381,1768108277335,-300.0,0.00038968,2]
[401291382,1768108277345,-300.0,0.00038968,2]
[401291383,1768108277355,-300.0,0.00038968,2]
[401291384,1768108277365,-303.73891517,0.00038968,2]
[401291385,1768108277376,-578.67252668,0.00038968,2]
[401291386,1768108277387,-1553.67582506,0.00038968,2]